Cogmind - Beta 9.5 @@@ ROGUE MODE // 2020.04.07 @ 00:49:29 Player: Hermelin Result: Destroyed by S-27 Virus with Autogun Performance ------------- Evolutions (6) 3000 Regions Visited (20) 4000 Robots Destroyed (37) 185 Value Destroyed (976) 976 Prototype IDs (26) 520 Alien Tech Used (0) 0 Bonus (1408) 1408 TOTAL SCORE: 10089 Bonus ------- Follower Combat Kills 808 Met Data Miner 300 Met Imprinter 300 Cogmind --------- Core Integrity 0/1150 Matter 280/300 Energy 98/100 System Corruption 0% Temperature Cool (0) Movement Core (50) Location -4/Hub_04(d) Parts ------- > --- POWER (2) -------- (None) > --- PROPULSION (5) --- (None) > --- UTILITY (10) ----- Advanced Signal Interpreter Advanced Melee Analysis Suite Improved Core Shielding System Shield > --- WEAPON (2) ------- (None) > --- INVENTORY (4) ---- Micro Fission Core Advanced Cryofiber Web Point Defense Array Corruption Screen Peak State ------------ > --- POWER ------------ Micro Nuclear Core Light Antimatter Reactor > --- PROPULSION ------- Gravmag System Improved Airjet Antigrav System Antigrav System Improved Flight Unit > --- UTILITY ---------- Small Storage Unit Advanced Weight Redist. System Advanced Sensor Array Advanced Signal Interpreter Improved Force Field Makeshift Hacking Suite System Shield Experimental Reclamation Unit Experimental Reclamation Unit Experimental Reclamation Unit > --- WEAPON ----------- Smartbomb Launcher > --- INVENTORY -------- Advanced Weight Redist. System Advanced Weight Redist. System Improved Force Field Point Defense Array System Backup Module [Rating: 97] Favorites ----------- Power Micro Nuclear Core Engine Light Ion Engine Power Core Micro Nuclear Core Reactor Light Antimatter Reactor Propulsion Improved Flight Unit Wheel Compact Wheel Hover Unit Hover Unit Flight Unit Improved Flight Unit Utility Small Storage Unit Device Advanced Sensor Array Storage Small Storage Unit Processor Advanced Signal Interpreter Hackware Makeshift Hacking Suite Protection Improved Propulsion Shielding Weapon Heavy Pick Energy Gun Small Laser Ballistic Gun Light Assault Rifle Launcher Smartbomb Launcher Impact Weapon Flail Slashing Weapon Makeshift Axe Piercing Weapon Heavy Pick Build | -11 -10 -10 -9 -8 -7 -7 -7 -7 -6 -6 -6 -6 -6 -5 -5 -4 -4 -4 -4 -4 ------- Run | Scr Mat Min Mat Mat Fac Low Low Zio Pro Fac Low Low Dat Pro Fac Fac Ext Cet Arc Hub Slots Evolved 12 | . . . 2 2 2 . . . . 2 . . . . 2 2 . . . . Power 1 | . . . . . . . . . . . . . . . 1 . . . . . Propulsion 3 | . . . 1 . . . . . . . . . . . 1 1 . . . . Utility 8 | . . . 1 2 2 . . . . 2 . . . . . 1 . . . . Weapon . | . . . . . . . . . . . . . . . . . . . . . Parts Attached 129 | 6 7 2 20 11 6 2 10 5 6 7 1 4 . 6 10 17 3 4 . 2 Power 17 | 1 2 2 2 3 1 . . . . 1 . . . . 2 2 1 . . . Engine 11 | 1 2 2 2 3 . . . . . . . . . . . 1 . . . . Core 4 | . . . . . 1 . . . . 1 . . . . 1 . 1 . . . Reactor 2 | . . . . . . . . . . . . . . . 1 1 . . . . Propulsion 32 | 2 2 . 10 3 2 . . . . 2 . . . . 5 5 1 . . . Treads . | . . . . . . . . . . . . . . . . . . . . . Leg . | . . . . . . . . . . . . . . . . . . . . . Wheel 2 | 2 . . . . . . . . . . . . . . . . . . . . Hover 15 | . 2 . 5 . . . . . . . . . . . 3 5 . . . . Flight 15 | . . . 5 3 2 . . . . 2 . . . . 2 . 1 . . . Utility 69 | 1 1 . 5 4 3 2 9 5 5 4 1 4 . 6 3 9 1 4 . 2 Device 39 | . . . . 2 1 1 7 4 3 1 1 2 . 2 2 8 1 4 . . Storage 3 | 1 . . 1 . . . . . . . . 1 . . . . . . . . Processor 10 | . 1 . 3 1 1 . . . . 1 . . . 2 . . . . . 1 Hackware 5 | . . . . . . . 1 . 1 1 . . . . 1 1 . . . . Protection 12 | . . . 1 1 1 1 1 1 1 1 . 1 . 2 . . . . . 1 Artifact . | . . . . . . . . . . . . . . . . . . . . . Weapon 11 | 2 2 . 3 1 . . 1 . 1 . . . . . . 1 . . . . Energy Gun 5 | 2 1 . 2 . . . . . . . . . . . . . . . . . Energy Cannon . | . . . . . . . . . . . . . . . . . . . . . Ballistic Gun 1 | . 1 . . . . . . . . . . . . . . . . . . . Ballistic Cannon . | . . . . . . . . . . . . . . . . . . . . . Launcher 1 | . . . . . . . . . . . . . . . . 1 . . . . Special Weapon . | . . . . . . . . . . . . . . . . . . . . . Impact Weapon 1 | . . . 1 . . . . . . . . . . . . . . . . . Slashing Weapon 2 | . . . . 1 . . 1 . . . . . . . . . . . . . Piercing Weapon 1 | . . . . . . . . . 1 . . . . . . . . . . . Special Melee Weapon . | . . . . . . . . . . . . . . . . . . . . . Unidentified Prototypes 5 | . . . 1 1 . . . . . . . 1 . . . 2 . . . . Parts Lost 51 | . 4 1 4 4 2 . 2 . . . . . . 1 9 10 9 . 5 . Power 9 | . 1 1 . 1 1 . . . . . . . . . 2 2 1 . . . Propulsion 14 | . 1 . 2 1 . . . . . . . . . . 3 4 2 . 1 . Utility 21 | . . . . 1 1 . 2 . . . . . . 1 3 3 6 . 4 . Weapon 7 | . 2 . 2 1 . . . . . . . . . . 1 1 . . . . Highest Loss Streak 10 | . 3 1 3 2 1 . 2 . . . . . . 1 9 10 9 . 5 . Average Slot Usage (%) 85 | . 87 98 89 91 98 92 80 87 90 90 82 80 86 84 88 84 50 45 31 13 Engine 2 | . 13 12 11 9 6 . . . . . . . . . . . 3 . . . Core 4 | . . . . . . 7 7 7 7 6 6 6 6 6 4 4 . 5 3 . Hover 3 | . 11 28 21 . . . . . . . . . . . . 19 3 . . . Flight 17 | . . . 4 24 23 23 23 23 23 19 20 20 20 20 20 5 3 5 3 . Device 11 | . . . . 7 6 7 16 11 14 13 12 13 13 13 16 23 16 19 12 . Storage 7 | . 14 14 11 9 7 7 7 7 7 6 6 6 6 6 5 5 3 . . . Processor 14 | . 10 14 18 18 22 23 15 15 15 18 14 13 13 11 6 5 5 5 5 6 Hackware 6 | . . . . . . . . 7 7 13 13 13 13 13 14 12 15 10 6 5 Protection 4 | . . . . 9 15 15 2 6 6 6 . . 6 5 4 . . . . 2 Energy Gun 2 | . 15 14 15 3 . . . . . . . . . . . . . . . . Slashing Weapon 2 | . . . . 1 7 7 7 7 4 . . . . . . . . . . . Piercing Weapon 2 | . . . . . . . . . 2 6 6 6 6 6 4 . . . . . Naked Turns . | . . . . . . . . . . . . . . . . . . . . . Heaviest Build 49 | 9 12 12 13 14 17 17 24 23 23 18 25 25 18 26 30 49 29 22 22 2 Greatest Support 56 | 26 26 12 18 16 18 18 18 18 18 18 18 18 18 18 40 56 35 23 23 3 Greatest Overweight (x) 1 | . 1 . 1 . 1 . 1 1 1 . 1 1 . 1 . 1 . . . . Average Overweight (x) . | . . . . . . . . . . . . . . . . . . . . . Largest Inventory Capacity 6 | 6 6 6 6 6 6 6 6 6 6 6 6 6 6 6 6 6 6 4 4 4 Average Capacity 5 | 5 6 6 6 6 6 6 6 6 6 6 6 6 6 6 6 6 5 4 4 4 Most Carried 6 | 4 6 6 6 6 6 6 6 6 6 6 6 6 6 6 6 6 4 4 2 4 Average Carried 5 | 1 5 5 5 4 5 5 5 5 5 5 5 5 6 5 5 5 3 . . 2 Final Capacity 6 | 6 6 6 6 6 6 6 6 6 6 6 6 6 6 6 6 6 4 4 4 4 Final Carried 6 | 4 6 5 6 6 4 6 6 6 6 6 6 6 6 6 3 4 4 . 2 4 Class Distribution -------------------- 16% | Derelict-Scout 12% | Hacker-Assassin 12% | Sprinter 12% | Mutant 11% | Scout 9% | Assassin 8% | Hacker-Mutant 7% | Hacker-Sprinter 3% | Scavenger-Mutant Dominant Class ---------------- Mutant | -10/Materials Mutant | -10/Mines Scavenger-Mutant | -9/Materials Sprinter | -8/Materials Sprinter | -7/Factory Scout | -7/Lower Caves Assassin | -7/Lower Caves Derelict-Scout | -7/Zion Derelict-Scout | -6/Proximity Caves Derelict-Scout | -6/Factory Hacker-Assassin | -6/Lower Caves Hacker-Assassin | -6/Lower Caves Derelict-Scout | -6/Data Miner Hacker-Sprinter | -5/Proximity Caves Hacker-Sprinter | -5/Factory Hacker-Mutant | -4/Factory Hacker-Mutant | -4/Extension Hacker-Mutant | -4/Cetus Hacker-Mutant | -4/Archives Mutant | -4/Hub_04(d) Resources | -11 -10 -10 -9 -8 -7 -7 -7 -7 -6 -6 -6 -6 -6 -5 -5 -4 -4 -4 -4 -4 ----------- Run | Scr Mat Min Mat Mat Fac Low Low Zio Pro Fac Low Low Dat Pro Fac Fac Ext Cet Arc Hub Matter Collected 3192 | 256 88 23 188 60 64 56 496 122 485 274 111 318 . 584 67 . . . . . Remotely . | . . . . . . . . . . . . . . . . . . . . . Salvage Created 1670 | . 169 43 686 75 64 67 47 . 181 22 . 118 . 77 32 89 . . . . Parts 79 | . 7 4 40 5 4 5 1 . 1 1 . 4 . 2 4 1 . . . . Haulers Intercepted 4 | . . . 2 1 . . . . . . . 1 . . . . . . . . Recyclers Shooed 2 | . . . 2 . . . . . . . . . . . . . . . . . Parts Field Recycled . | . . . . . . . . . . . . . . . . . . . . . Retrieved Matter . | . . . . . . . . . . . . . . . . . . . . . Parts Self-Destructed 39 | . . . . . . . 1 . . . . 12 . 26 . . . . . . Prevented 1 | . . . . . . . . . . . 1 . . . . . . . . . Kills | -11 -10 -10 -9 -8 -7 -7 -7 -7 -6 -6 -6 -6 -6 -5 -5 -4 -4 -4 -4 -4 ------- Run | Scr Mat Min Mat Mat Fac Low Low Zio Pro Fac Low Low Dat Pro Fac Fac Ext Cet Arc Hub Combat Hostiles Destroyed 22 | . 3 3 11 1 . 1 . . . . . . . 1 . 2 . . . . Melee 3 | . . . . 1 . 1 . . . . . . . 1 . . . . . . Guns 17 | . 3 3 11 . . . . . . . . . . . . . . . . . AOE 2 | . . . . . . . . . . . . . . . . 2 . . . . Classes Destroyed 9 | . 2 1 4 . . 1 . . . 1 . . . . . . . . . . Worker 2 | . . . . . . . . . . 1 . . . . . 1 . . . . Hauler 4 | . . . 2 1 . . . . . . . 1 . . . . . . . . Recycler 2 | . . . 2 . . . . . . . . . . . . . . . . . Operator 1 | . . . 1 . . . . . . . . . . . . . . . . . Watcher 6 | . 2 . 1 . 2 . . . . . . . . . 1 . . . . . Swarmer 7 | . . 3 3 1 . . . . . . . . . . . . . . . . Grunt 13 | . 3 . 7 . . . . . . . . . . 1 . 2 . . . . Sentry 1 | . . . 1 . . . . . . . . . . . . . . . . . Mutant 1 | . . . . . . 1 . . . . . . . . . . . . . . Best Kill Streak 5 | . 2 3 5 2 1 1 . . . 1 . 1 . 1 1 3 . . . . Combat Bots Only 4 | . 2 3 4 1 . 1 . . . . . . . 1 . 2 . . . . Max Kills in Single Turn 2 | . 1 1 2 1 1 1 . . . 1 . 1 . 1 1 2 . . . . Gunslinging . | . . . . . . . . . . . . . . . . . . . . . Exploded 1 | . . . . . . . . . . . . . . . . 1 . . . . Melee 1 | . . . . 1 . 1 . . . . . . . 1 . . . . . . Uniques/NPCs Destroyed . | . . . . . . . . . . . . . . . . . . . . . Combat | -11 -10 -10 -9 -8 -7 -7 -7 -7 -6 -6 -6 -6 -6 -5 -5 -4 -4 -4 -4 -4 -------- Run | Scr Mat Min Mat Mat Fac Low Low Zio Pro Fac Low Low Dat Pro Fac Fac Ext Cet Arc Hub Damage Taken 5590 | . 401 171 335 294 310 63 141 . 67 30 . 39 . 204 1189 539 1047 120 548 92 Core 2362 | . 110 74 123 55 84 43 . . 67 15 . 18 . 71 543 50 627 51 363 68 Absorbed by Shields 141 | . . . . . . . . . . . . . . . 23 42 76 . . . Core Remaining (%) 69 | 100 . 26 69 90 . . . . 72 . . . . 87 45 . . . . . Volleys Fired 87 | . 31 10 39 6 . . . . . . . . . . . 1 . . . . Largest 2 | . 2 2 2 1 . . . . . . . . . . . 1 . . . . Hottest 80 | . 80 60 80 40 . . . . . . . . . . . 46 . . . . Shots Fired 147 | . 45 20 75 6 . . . . . . . . . . . 1 . . . . Gun 146 | . 45 20 75 6 . . . . . . . . . . . . . . . . Cannon . | . . . . . . . . . . . . . . . . . . . . . Launcher 1 | . . . . . . . . . . . . . . . . 1 . . . . Special . | . . . . . . . . . . . . . . . . . . . . . Kinetic 35 | . 14 10 11 . . . . . . . . . . . . . . . . . Thermal 91 | . 31 . 54 6 . . . . . . . . . . . . . . . . Explosive 1 | . . . . . . . . . . . . . . . . 1 . . . . Electromagnetic 20 | . . 10 10 . . . . . . . . . . . . . . . . . Robot Hit Streak 22 | . 10 6 22 8 . . . . . . . . . . . 1 . . . . Robot Miss Streak 4 | . 3 4 3 1 . . . . . . . . . . . . . . . . Penetration Max . | . . . . . . . . . . . . . . . . . . . . . Secondary Targets 1 | . 1 . . . . . . . . . . . . . . . . . . . Max Gunslinging Chain 1 | . 1 . . . . . . . . . . . . . . . . . . . Shots Hit Robots 127 | . 29 11 60 7 2 2 1 . 5 2 . 1 . 3 3 1 . . . . Core Hits 66 | . 10 5 27 4 2 2 . . 1 1 . 1 . 2 3 8 . . . . Critical Hits . | . . . . . . . . . . . . . . . . . . . . . Critical Kills . | . . . . . . . . . . . . . . . . . . . . . Critical Parts Destroyed . | . . . . . . . . . . . . . . . . . . . . . Melee Attacks 53 | . . . 6 9 3 3 1 . 6 3 7 3 . 3 9 . . . . . Impact 15 | . . . 6 9 . . . . . . . . . . . . . . . . Slashing 13 | . . . . . 3 3 1 . 6 . . . . . . . . . . . Piercing 25 | . . . . . . . . . . 3 7 3 . 3 9 . . . . . Sneak Attacks 7 | . . . 2 2 . . . . . 1 . 1 . . 1 . . . . . Combat Hostiles . | . . . . . . . . . . . . . . . . . . . . . Follow-up Attacks . | . . . . . . . . . . . . . . . . . . . . . Damage Inflicted 3757 | . 308 174 851 251 93 67 114 . 565 114 . 92 . 116 204 808 . . . . Guns 1071 | . 308 126 596 41 . . . . . . . . . . . . . . . . Cannons . | . . . . . . . . . . . . . . . . . . . . . Explosions 856 | . . 48 . . . . . . . . . . . . . 808 . . . . Melee 1816 | . . . 255 210 93 67 114 . 565 114 . 92 . 116 190 . . . . . Ramming 14 | . . . . . . . . . . . . . . . 14 . . . . . Kinetic 172 | . 54 53 65 . . . . . . . . . . . . . . . . . Thermal 1114 | . 254 48 409 41 . . . . . . . . . . . 362 . . . . Explosive 446 | . . . . . . . . . . . . . . . . 446 . . . . Electromagnetic 195 | . . 73 122 . . . . . . . . . . . . . . . . . Impact 465 | . . . 255 210 . . . . . . . . . . . . . . . . Slashing 839 | . . . . . 93 67 114 . 565 . . . . . . . . . . . Piercing 512 | . . . . . . . . . . 114 . 92 . 116 190 . . . . . Highest Corruption 3 | . 1 1 . . . . . . . . . 3 3 3 . . 1 1 . . Average Corruption 2 | . 1 1 . . . . . . . . . 3 3 3 . . 1 1 . . Corruption Purged 1 | . . . . . . . . . . . . . . . . . . 1 . . Effects 15 | . 2 1 . . . . . . . . . . . 12 . . . . . . Message Errors 3 | . . 1 . . . . . . . . . . . 2 . . . . . . Matter Fused 3 | . . . . . . . . . . . . . . 3 . . . . . . Heat Flow Errors 2 | . . . . . . . . . . . . . . 2 . . . . . . Energy Discharges 5 | . 2 . . . . . . . . . . . . 3 . . . . . . Data Loss (minor) 2 | . . . . . . . . . . . . . . 2 . . . . . . Overload Shots . | . . . . . . . . . . . . . . . . . . . . . Overflow Damage 753 | . . 38 46 45 . . 102 . 413 50 . . . 4 . 55 . . . . Projectiles . | . . . . . . . . . . . . . . . . . . . . . Explosions 93 | . . 38 . . . . . . . . . . . . . 55 . . . . Melee 660 | . . . 46 45 . . 102 . 413 50 . . . 4 . . . . . . Knockbacks 1 | . . . . 1 . . . . . . . . . . . . . . . . Impact 1 | . . . . 1 . . . . . . . . . . . . . . . . Kinetic . | . . . . . . . . . . . . . . . . . . . . . Secondary . | . . . . . . . . . . . . . . . . . . . . . Self-Inflicted Damage 106 | . . . . . . . . . . . . . . . 7 99 . . . . Shots 2 | . . . . . . . . . . . . . . . . 2 . . . . Rammed 2 | . . . . . . . . . . . . . . . 2 . . . . . Targets Rammed 2 | . . . . . . . . . . . . . . . 2 . . . . . Kicked . | . . . . . . . . . . . . . . . . . . . . . Crushed . | . . . . . . . . . . . . . . . . . . . . . Highest Temperature 257 | . 240 81 145 3 12 6 . . . . . . . 257 2 33 . . . . Average Temperature 69 | . 106 49 52 3 9 6 . . . . . . . 136 2 18 . . . . Received Heat Transfer 780 | . 138 . 117 54 105 38 . . 9 . . 9 . 33 . 112 66 27 72 . Siege Activations . | . . . . . . . . . . . . . . . . . . . . . Robots Corrupted . | . . . . . . . . . . . . . . . . . . . . . Combat Hostiles . | . . . . . . . . . . . . . . . . . . . . . Parts Fried 1 | . . . 1 . . . . . . . . . . . . . . . . . Impact Corruptions 4 | . . . 2 2 . . . . . . . . . . . . . . . . Robots Melted . | . . . . . . . . . . . . . . . . . . . . . Combat Hostiles . | . . . . . . . . . . . . . . . . . . . . . Parts Melted . | . . . . . . . . . . . . . . . . . . . . . Heat Transferred 1900 | . 575 50 925 100 . . . . . . . . . . . 250 . . . . Parts Sabotaged . | . . . . . . . . . . . . . . . . . . . . . Parts Stolen . | . . . . . . . . . . . . . . . . . . . . . Parts Stripped . | . . . . . . . . . . . . . . . . . . . . . Power Chain Reactions . | . . . . . . . . . . . . . . . . . . . . . Missiles Intercepted . | . . . . . . . . . . . . . . . . . . . . . Alert | -11 -10 -10 -9 -8 -7 -7 -7 -7 -6 -6 -6 -6 -6 -5 -5 -4 -4 -4 -4 -4 ------- Run | Scr Mat Min Mat Mat Fac Low Low Zio Pro Fac Low Low Dat Pro Fac Fac Ext Cet Arc Hub Peak Influence 245 | . 84 107 212 200 149 . . . . 195 . . . . 245 205 181 70 68 28 Average Influence 72 | . 38 40 93 108 90 . . . . 26 . . . . 123 22 136 60 42 14 Maximum Alert Level 1 | . . . 1 1 . . . . . . . . . . 1 1 . . . . Low Security (%) 94 | 100 100 100 83 88 100 . . . . 100 . . . . 83 99 100 100 100 100 Level 1 5 | . . . 16 11 . . . . . . . . . . 16 . . . . . Level 2 . | . . . . . . . . . . . . . . . . . . . . . Level 3 . | . . . . . . . . . . . . . . . . . . . . . Level 4 . | . . . . . . . . . . . . . . . . . . . . . Level 5 . | . . . . . . . . . . . . . . . . . . . . . High Security . | . . . . . . . . . . . . . . . . . . . . . Max Security . | . . . . . . . . . . . . . . . . . . . . . Squads Dispatched 10 | . 2 . 2 2 2 . . . . 1 . . . . 1 . . . . . Investigation 3 | . 1 . 1 . 1 . . . . . . . . . . . . . . . Extermination 2 | . . . . . 1 . . . . 1 . . . . . . . . . . Reinforcement 5 | . 1 . 1 2 . . . . . . . . . . 1 . . . . . Assault . | . . . . . . . . . . . . . . . . . . . . . Garrison . | . . . . . . . . . . . . . . . . . . . . . Intercept . | . . . . . . . . . . . . . . . . . . . . . Construction Impeded . | . . . . . . . . . . . . . . . . . . . . . Haulers Reinforced 1 | . . . . . . . . . . . . . . . 1 . . . . . Stealth | -11 -10 -10 -9 -8 -7 -7 -7 -7 -6 -6 -6 -6 -6 -5 -5 -4 -4 -4 -4 -4 --------- Run | Scr Mat Min Mat Mat Fac Low Low Zio Pro Fac Low Low Dat Pro Fac Fac Ext Cet Arc Hub Distress Signals 7 | . . . 1 2 . . . . . . . . . . 2 . . 1 . 1 Communications Jammed . | . . . . . . . . . . . . . . . . . . . . . Distress Signals . | . . . . . . . . . . . . . . . . . . . . . Times Spotted 199 | . 11 5 21 19 21 7 8 . 10 11 . 9 . 11 29 10 13 5 4 5 Peak Tracking Total 15 | . 4 4 6 12 10 4 5 . 4 6 . 5 . 5 15 11 9 5 4 5 Tactical Retreats 35 | . . 1 3 4 3 3 1 . 5 1 . 3 . 2 6 1 2 . . . Traps | -11 -10 -10 -9 -8 -7 -7 -7 -7 -6 -6 -6 -6 -6 -5 -5 -4 -4 -4 -4 -4 ------- Run | Scr Mat Min Mat Mat Fac Low Low Zio Pro Fac Low Low Dat Pro Fac Fac Ext Cet Arc Hub Traps Triggered 6 | . 3 . . . 1 . . . . . . . . . 1 1 . . . . Indirectly . | . . . . . . . . . . . . . . . . . . . . . Trap Hack Attempts . | . . . . . . . . . . . . . . . . . . . . . Triggered . | . . . . . . . . . . . . . . . . . . . . . Disarmed . | . . . . . . . . . . . . . . . . . . . . . Reprogrammed . | . . . . . . . . . . . . . . . . . . . . . Reused . | . . . . . . . . . . . . . . . . . . . . . Traps Extracted . | . . . . . . . . . . . . . . . . . . . . . Installed . | . . . . . . . . . . . . . . . . . . . . . Triggered 2 | . . . . . . . . . 1 . 1 . . . . . . . . . Machines | -11 -10 -10 -9 -8 -7 -7 -7 -7 -6 -6 -6 -6 -6 -5 -5 -4 -4 -4 -4 -4 ---------- Run | Scr Mat Min Mat Mat Fac Low Low Zio Pro Fac Low Low Dat Pro Fac Fac Ext Cet Arc Hub Machines Disabled 10 | . . 1 . . 1 1 . . . 1 . . . . . 6 . . . . Max in Single Turn 3 | . . 1 . . 1 1 . . . . . . . . . 3 . . . . Garrison Access 1 | . . . . . . . . . . 1 . . . . . . . . . . Machines Sabotaged . | . . . . . . . . . . . . . . . . . . . . . Garrisons Compromised . | . . . . . . . . . . . . . . . . . . . . . Overloaded Fab Kills . | . . . . . . . . . . . . . . . . . . . . . Fab Network Shutdowns . | . . . . . . . . . . . . . . . . . . . . . Hacking | -11 -10 -10 -9 -8 -7 -7 -7 -7 -6 -6 -6 -6 -6 -5 -5 -4 -4 -4 -4 -4 --------- Run | Scr Mat Min Mat Mat Fac Low Low Zio Pro Fac Low Low Dat Pro Fac Fac Ext Cet Arc Hub Machines Accessed 51 | . 2 . 5 5 9 1 2 . . 7 1 . 4 . 6 4 1 3 . 1 Terminals 26 | . 2 . 3 1 6 . . . . 2 . . . . 4 3 1 3 . 1 Fabricators 4 | . . . . . 2 . . . . 1 . . . . 1 . . . . . Repair Stations 3 | . . . 1 . . . . . . 1 . . . . 1 . . . . . Recycling Units 6 | . . . . 2 1 . . . . 2 . . . . . 1 . . . . Scanalyzers 2 | . . . 1 1 . . . . . . . . . . . . . . . . Garrison Access 2 | . . . . 1 . . . . . 1 . . . . . . . . . . Total Hacks 168 | . 4 . 20 9 21 1 2 . . 19 1 . 27 . 27 11 12 13 . 1 Successful 103 | . 1 . 12 5 7 1 2 . . 8 1 . 27 . 17 7 7 8 . . Failed 64 | . 3 . 7 4 14 . . . . 11 . . . . 10 4 5 5 . 1 Catastrophic 9 | . . . 1 . 3 . . . . 1 . . . . 2 . 1 . . 1 Database Lockouts 1 | . . . 1 . . . . . . . . . . . . . . . . . Manual 63 | . 2 . 10 1 12 . . 1 . 4 . . . . 16 4 7 5 . 1 Terminals 94 | . 4 . 16 1 13 . . . . 5 . . . . 22 7 12 13 . 1 Fabricators 10 | . . . . . 6 . . . . 2 . . . . 2 . . . . . Repair Stations 9 | . . . 2 . . . . . . 4 . . . . 3 . . . . . Recycling Units 16 | . . . . 4 2 . . . . 6 . . . . . 4 . . . . Scanalyzers 4 | . . . 2 2 . . . . . . . . . . . . . . . . Garrison Access 4 | . . . . 2 . . . . . 2 . . . . . . . . . . Terminal Hacks 62 | . 1 . 6 . . 1 2 . . 1 1 . 27 . 7 4 6 6 . . Record 20 | . . . . . . 1 . . . . . . 11 . 2 2 . 4 . . Part Schematic 9 | . . . 1 . . . . . . . . . 6 . . . 2 . . . Robot Schematic 7 | . . . . . . . . . . . . . 7 . . . . . . . Robot Analysis 1 | . 1 . . . . . . . . . . . . . . . . . . . Prototype ID Bank 5 | . . . . . . . . . . . . . 3 . 1 1 . . . . Open Door 5 | . . . . . . . 2 . . . 1 . . . . 1 . 1 . . Level Access Points 1 | . . . . . . . . . . . . . . . 1 . . . . . Branch Access Points 1 | . . . . . . . . . . 1 . . . . . . . . . . Terminal Index 3 | . . . 2 . . . . . . . . . . . . . 1 . . . Unreport Threat 2 | . . . 1 . . . . . . . . . . . 1 . . . . . Locate Traps 2 | . . . 1 . . . . . . . . . . . . . 1 . . . Recall Reinforcements 1 | . . . . . . . . . . . . . . . 1 . . . . . Registered Components 3 | . . . 1 . . . . . . . . . . . 1 . 1 . . . Zone Layout 2 | . . . . . . . . . . . . . . . . . 1 1 . . Fabricator Hacks 5 | . . . . . 3 . . . . . . . . . 2 . . . . . Load Schematic 3 | . . . . . 2 . . . . . . . . . 1 . . . . . Build 2 | . . . . . 1 . . . . . . . . . 1 . . . . . Repair Station Hacks 9 | . . . 2 . . . . . . 4 . . . . 3 . . . . . Scan Component 5 | . . . 1 . . . . . . 2 . . . . 2 . . . . . Repair 4 | . . . 1 . . . . . . 2 . . . . 1 . . . . . Recycling Unit Hacks 5 | . . . . 3 1 . . . . . . . . . . 1 . . . . Report Inventory 4 | . . . . 2 1 . . . . . . . . . . 1 . . . . Retrieve Components 1 | . . . . 1 . . . . . . . . . . . . . . . . Scanalyzer 4 | . . . 2 2 . . . . . . . . . . . . . . . . Insert Component 2 | . . . 1 1 . . . . . . . . . . . . . . . . Analyze 2 | . . . 1 1 . . . . . . . . . . . . . . . . Garrison Access Hacks 1 | . . . . . . . . . . 1 . . . . . . . . . . Seal Access 1 | . . . . . . . . . . 1 . . . . . . . . . . Unauthorized Hacks 43 | . 1 . 4 . 12 . . . . 5 . . . . 10 4 2 5 . . Terminals 16 | . . . 2 . 3 . . . . 1 . . . . 5 2 1 2 . . Track 2 | . . . . . . . . . . . . . . . 1 . . 1 . . Assimilate 3 | . . . . . 3 . . . . . . . . . . . . . . . Botnet 9 | . . . 2 . . . . . . 1 . . . . 3 1 1 1 . . Detonate 1 | . . . . . . . . . . . . . . . . 1 . . . . Operators 1 | . . . . . . . . . . . . . . . 1 . . . . . Fabricators 1 | . . . . . . . . . . 1 . . . . . . . . . . Siphon 1 | . . . . . . . . . . 1 . . . . . . . . . . Repair Stations . | . . . . . . . . . . . . . . . . . . . . . Recycling Units . | . . . . . . . . . . . . . . . . . . . . . Scanalyzers . | . . . . . . . . . . . . . . . . . . . . . Garrison Access . | . . . . . . . . . . . . . . . . . . . . . Data Cores Recovered . | . . . . . . . . . . . . . . . . . . . . . Used . | . . . . . . . . . . . . . . . . . . . . . Hacking Detections 36 | . 2 . 4 4 9 . . . . 4 . . . . 6 3 1 2 . 1 Full Trace Events 2 | . . . . 1 1 . . . . . . . . . . . . . . . Feedback Events . | . . . . . . . . . . . . . . . . . . . . . Feedback Blocked . | . . . . . . . . . . . . . . . . . . . . . Robot Schematics Acquired 7 | . . . . . . . . . . . . . 7 . . . . . . . Robots Built . | . . . . . . . . . . . . . . . . . . . . . Matter . | . . . . . . . . . . . . . . . . . . . . . Time . | . . . . . . . . . . . . . . . . . . . . . Total Robot Build Rating . | . . . . . . . . . . . . . . . . . . . . . Part Schematics Acquired 11 | . . . 2 1 . . . . . . . . 6 . . . 2 . . . Parts Built 2 | . . . . . 1 . . . . . . . . . 1 . . . . . Matter 504 | . . . . . 186 . . . . . . . . . 318 . . . . . Time 183 | . . . . . 99 . . . . . . . . . 84 . . . . . Total Part Build Rating 8 | . . . . . 2 . . . . . . . . . 6 . . . . . Parts Repaired 4 | . . . 1 . . . . . . 2 . . . . 1 . . . . . Time 127 | . . . 26 . . . . . . 50 . . . . 51 . . . . . Parts Recycled . | . . . . . . . . . . . . . . . . . . . . . Recycled Matter . | . . . . . . . . . . . . . . . . . . . . . Retrieved Matter . | . . . . . . . . . . . . . . . . . . . . . Retrieved Components 2 | . . . . 2 . . . . . . . . . . . . . . . . Parts Scanalyzed 2 | . . . 1 1 . . . . . . . . . . . . . . . . Part Schematics Acquired 2 | . . . 1 1 . . . . . . . . . . . . . . . . Parts Damaged . | . . . . . . . . . . . . . . . . . . . . . Bothacking | -11 -10 -10 -9 -8 -7 -7 -7 -7 -6 -6 -6 -6 -6 -5 -5 -4 -4 -4 -4 -4 ------------ Run | Scr Mat Min Mat Mat Fac Low Low Zio Pro Fac Low Low Dat Pro Fac Fac Ext Cet Arc Hub Used RIF Installer . | . . . . . . . . . . . . . . . . . . . . . Robots Hacked . | . . . . . . . . . . . . . . . . . . . . . Non-combat . | . . . . . . . . . . . . . . . . . . . . . Combat . | . . . . . . . . . . . . . . . . . . . . . Robot Hacks Applied . | . . . . . . . . . . . . . . . . . . . . . Relay Couplers Released . | . . . . . . . . . . . . . . . . . . . . . Robots Rewired 3 | . . . . . . 3 . . . . . . . . . . . . . . Allies Hacked . | . . . . . . . . . . . . . . . . . . . . . Hacks Repelled . | . . . . . . . . . . . . . . . . . . . . . Allies | -11 -10 -10 -9 -8 -7 -7 -7 -7 -6 -6 -6 -6 -6 -5 -5 -4 -4 -4 -4 -4 -------- Run | Scr Mat Min Mat Mat Fac Low Low Zio Pro Fac Low Low Dat Pro Fac Fac Ext Cet Arc Hub Total Allies 9 | . . . . . 2 3 . . . 2 . . . 2 . . . . . . Largest Group 3 | . . . . . 1 3 . . . 2 . . . 1 1 . . . . . Highest-Rated Group 188 | . . . . . 26 60 . . . 188 . . . 99 98 . . . . . Highest-Rated Ally 99 | . . . . . 26 20 . . . 94 . . . 99 98 . . . . . Total Orders 4 | . . . . . . . . . . . . . . . 4 . . . . . GOTO 1 | . . . . . . . . . . . . . . . 1 . . . . . EXPLORE 3 | . . . . . . . . . . . . . . . 3 . . . . . Ally Attacks 73 | . . . . . . 14 . . . 16 . . . 30 13 . . . . . Total Damage 3546 | . . . . . . 299 . . . 560 . . . 1539 1148 . . . . . Kills 24 | . . . . . . . . . . 5 . . . 15 4 . . . . . Allies Corrupted . | . . . . . . . . . . . . . . . . . . . . . Allies Melted . | . . . . . . . . . . . . . . . . . . . . . Intel | -11 -10 -10 -9 -8 -7 -7 -7 -7 -6 -6 -6 -6 -6 -5 -5 -4 -4 -4 -4 -4 ------- Run | Scr Mat Min Mat Mat Fac Low Low Zio Pro Fac Low Low Dat Pro Fac Fac Ext Cet Arc Hub Robot Analysis Total 1 | . 1 . . . . . . . . . . . . . . . . . . . Derelict Logs Recovered 12 | . . 1 . . . 3 2 2 . . 1 2 . 1 . . . . . . Drone Launches 5 | . . . . . . . . . . 2 . . . . 3 . . . . . Drone Recoveries . | . . . . . . . . . . . . . . . . . . . . . Exploration | -11 -10 -10 -9 -8 -7 -7 -7 -7 -6 -6 -6 -6 -6 -5 -5 -4 -4 -4 -4 -4 ------------- Run | Scr Mat Min Mat Mat Fac Low Low Zio Pro Fac Low Low Dat Pro Fac Fac Ext Cet Arc Hub Turns Passed 7728 | 46 385 178 471 257 635 571 1090 399 463 465 561 562 23 507 477 283 151 83 22 99 Spaces Moved 11313 | 40 384 245 441 439 983 1030 1439 1147 753 826 595 531 77 576 854 278 242 197 48 188 Core 317 | 5 . . . . . . . . . . . . . . . . 104 . 20 188 Treads . | . . . . . . . . . . . . . . . . . . . . . Legs . | . . . . . . . . . . . . . . . . . . . . . Wheels 206 | 35 171 . . . . . . . . . . . . . . . . . . . Hover 1307 | . 213 245 371 . . . . . . . . . . . 76 278 124 . . . Flight 9483 | . . . 70 439 983 1030 1439 1147 753 826 595 531 77 576 778 . 14 197 28 . Fastest Speed 27 | 50 56 56 29 30 29 29 29 29 29 29 29 29 29 29 27 45 35 40 40 50 Average Speed 44 | 84 73 56 58 31 30 29 63 29 31 29 80 82 29 30 29 48 59 40 44 50 Slowest Speed 125 | 90 125 56 120 32 102 29 99 99 99 29 99 99 29 99 50 108 70 40 50 50 Overloaded Moves . | . . . . . . . . . . . . . . . . . . . . . Propulsion Burnouts . | . . . . . . . . . . . . . . . . . . . . . Robots Hopped 36 | . . . 2 9 8 5 2 . . 2 . . . . 6 . 1 1 . . Cave-ins Triggered . | . . . . . . . . . . . . . . . . . . . . . Exploration Rate (%) 52 | 3 45 51 35 47 35 97 97 91 77 22 70 61 73 69 26 8 41 80 68 14 Regions Visited 20 Branch Regions 13 Pre-discovered Areas 3 | . . . . . . . 1 1 . . . . 1 . . . . . . . Known Exits Taken 17 | . . . 1 1 1 1 1 1 1 1 1 1 1 1 1 1 1 1 1 . Unknown Exits Taken 3 | 1 1 1 . . . . . . . . . . . . . . . . . . Scrap Searched 27 | . . 2 . . . 7 5 3 3 . 3 . . 4 . . . . . . Spaces Dug 14 | . . . . . . . . . 1 1 4 2 . . 6 . . . . . Terrain Destroyed 74 | . . 11 . . . . . . 1 1 4 2 . . 6 49 . . . . Melee 14 | . . . . . . . . . 1 1 4 2 . . 6 . . . . . Projectile . | . . . . . . . . . . . . . . . . . . . . . AOE 60 | . . 11 . . . . . . . . . . . . . 49 . . . . Actions | -11 -10 -10 -9 -8 -7 -7 -7 -7 -6 -6 -6 -6 -6 -5 -5 -4 -4 -4 -4 -4 --------- Run | Scr Mat Min Mat Mat Fac Low Low Zio Pro Fac Low Low Dat Pro Fac Fac Ext Cet Arc Hub Total 13746 | 49 442 267 572 529 1307 1291 1619 1204 975 1041 664 651 76 900 1055 418 246 199 49 192 Wait 2037 | . 12 7 43 63 308 238 156 48 203 202 55 107 . 300 175 118 2 . . . Move 11224 | 39 383 244 436 421 966 1019 1434 1146 752 822 594 530 76 575 842 277 239 194 47 188 Hop 33 | . . . 2 8 8 5 2 . . 1 . . . . 5 . 1 1 . . Pick Up 69 | 4 5 2 9 7 7 2 5 1 2 2 3 3 . 8 3 4 . . . 2 Fast Attach 66 | 6 4 . 10 3 1 . 4 4 4 5 . . . 4 4 13 2 . . 2 Attach 42 | . 2 1 3 5 3 1 4 1 1 1 1 4 . 2 5 3 1 4 . . Detach 9 | . 1 . 3 . . 1 . . . . 1 . . . . . 1 . 2 . Swap 21 | . 1 1 7 3 2 1 2 . 1 1 . . . . 1 1 . . . . Drop 77 | . 3 2 14 4 9 1 11 4 6 4 3 4 . 8 3 1 . . . . Fire 87 | . 31 10 39 6 . . . . . . . . . . . 1 . . . . Melee 53 | . . . 6 9 3 3 1 . 6 3 7 3 . 3 9 . . . . . Ram 2 | . . . . . . . . . . . . . . . 2 . . . . . Kick . | . . . . . . . . . . . . . . . . . . . . . Crush . | . . . . . . . . . . . . . . . . . . . . . Escape Stasis 5 | . . . . . . . . . . . . . . . 5 . . . . . Rewire 20 | . . . . . . 20 . . . . . . . . . . . . . . Trap . | . . . . . . . . . . . . . . . . . . . . . Miscellaneous 1 | . . . . . . . . . . . . . . . 1 . . . . . Route ------- -11/Scrapyard -10/Materials (discovered 2 exits: *Mat / [*Min]) -10/Mines -9/Materials (discovered 3 exits: *Mat / [*Min] / *Sto) -8/Materials -7/Factory (discovered 2 exits: *Fac / *Low) -7/Lower Caves -7/Lower Caves (discovered 2 exits: *Fac / *Zio) -7/Zion -6/Proximity Caves -6/Factory (discovered 3 exits: Fac / *Low x2) -6/Lower Caves -6/Lower Caves (discovered 2 exits: *Fac / *Dat) -6/Data Miner -5/Proximity Caves -5/Factory (discovered 5 exits: *Fac x4 / Upp) -4/Factory -4/Extension (discovered 2 exits: *Res / *Cet) -4/Cetus (discovered 2 exits: *Res / *Arc) -4/Archives -4/Hub_04(d) History --------- Turn | Location | Event 14 | -11/Scrapyard | Discovered new exit (range 15) 47 | -11/Scrapyard | Entered Materials 96 | -10/Materials | Discovered new exit (range 10) 215 | -10/Materials | Lost 3 parts (1p1n1w) 265 | -10/Materials | Discovered new exit (range 7) 305 | -10/Materials | Build established: Mutant 432 | -10/Materials | Entered Mines 575 | -10/Mines | Core integrity fell below 50% 604 | -10/Mines | Discovered new exit (range 11) 610 | -10/Mines | Entered Materials 610 | -9/Materials | Evolved 2 slots: Propulsion x1, Utility x1 611 | -9/Materials | Identified exit to Storage 674 | -9/Materials | Repaired Hover Unit 837 | -9/Materials | Lost 3 parts (1n2w) 884 | -9/Materials | Central database locked down 903 | -9/Materials | Discovered new exit (range 16) 972 | -9/Materials | Discovered new exit (range 5) 1081 | -9/Materials | Identified exit to Materials 1081 | -9/Materials | Entered another Materials area 1081 | -8/Materials | Evolved 2 slots: Utility x2 1334 | -8/Materials | Discovered new exit (range 10) 1338 | -8/Materials | Identified exit to Factory 1338 | -8/Materials | Entered Factory 1338 | -7/Factory | Evolved 2 slots: Utility x2 1467 | -7/Factory | Build established: Sprinter 1769 | -7/Factory | Fabricated Imp. Flight Unit (x1) 1897 | -7/Factory | Discovered new exit (range 22) 1914 | -7/Factory | Identified exit to Factory 1960 | -7/Factory | Discovered new exit (range 9) 1961 | -7/Factory | Identified exit to Lower Caves 1973 | -7/Factory | Entered Lower Caves 2042 | -7/Lower Caves | Learned Factory terminal intel 2045 | -7/Lower Caves | Learned Factory stockpile data 2082 | -7/Lower Caves | Attacked by a delusional Derelict stockpiling Unaware 2088 | -7/Lower Caves | Rewired Cogmind 2106 | -7/Lower Caves | Rewired Cogmind 2107 | -7/Lower Caves | Rewired Cogmind 2397 | -7/Lower Caves | Build established: Scout 2443 | -7/Lower Caves | Encountered a Warlord checkpoint 2498 | -7/Lower Caves | Discovered new exit (range 17) 2502 | -7/Lower Caves | Identified exit to Lower Caves 2504 | -7/Lower Caves | Learned location of 1 exit from Factory 2544 | -7/Lower Caves | Entered another Lower Caves area 2549 | -7/Lower Caves | Discovered exit to Factory (range 4) 2607 | -7/Lower Caves | Found Prototype Device 2626 | -7/Lower Caves | Identified Heart of Steel 2672 | -7/Lower Caves | Learned location of Zion (-7) 3133 | -7/Lower Caves | Build established: Assassin 3630 | -7/Lower Caves | Discovered new exit (range 3) 3630 | -7/Lower Caves | Identified exit to Zion 3634 | -7/Lower Caves | Entered Zion 3647 | -7/Zion | Discovered new exit (range 12) 3650 | -7/Zion | Identified exit to Proximity Caves 3694 | -7/Zion | Learned Factory trap positions 3732 | -7/Zion | Received a hallucinogenic algorithm 3809 | -7/Zion | Learned Factory garrison access intel 3845 | -7/Zion | Given A8's code to call for help 4033 | -7/Zion | Entered Proximity Caves 4231 | -6/Proximity Caves | Build established: Derelict-Scout 4323 | -6/Proximity Caves | Discovered exit to Factory (range 5) 4496 | -6/Proximity Caves | Entered Factory 4496 | -6/Factory | Evolved 2 slots: Utility x2 4497 | -6/Factory | Identified exit to Factory 4498 | -6/Factory | Loaded intel: 69 trap records 4500 | -6/Factory | Loaded intel: 20 terminal locations 4501 | -6/Factory | Loaded intel: 4 garrison access locations 4630 | -6/Factory | Repaired Imp. Flight Unit 4656 | -6/Factory | Repaired Imp. Flight Unit 4857 | -6/Factory | Enhanced Grunt warped into view, answering call for help 4857 | -6/Factory | Enhanced Grunt warped into view, answering call for help 4931 | -6/Factory | Identified exit to Lower Caves 4961 | -6/Factory | Entered Lower Caves 5125 | -6/Lower Caves | Learned Factory stockpile data 5309 | -6/Lower Caves | Discovered new exit (range 12) 5319 | -6/Lower Caves | Identified exit to Lower Caves 5366 | -6/Lower Caves | Build established: Hacker-Assassin 5522 | -6/Lower Caves | Entered another Lower Caves area 5532 | -6/Lower Caves | Discovered exit to Factory (range 14) 5610 | -6/Lower Caves | Spotted B-75 Beast 5712 | -6/Lower Caves | Learned Factory terminal intel 5737 | -6/Lower Caves | Discovered new exit (range 5) 5741 | -6/Lower Caves | Identified exit to Data Miner 6052 | -6/Lower Caves | Learned Factory stockpile data 6084 | -6/Lower Caves | Entered Data Miner 6084 | -6/Data Miner | Discovered new exit (range 6) 6086 | -6/Data Miner | Identified exit to Proximity Caves 6088 | -6/Data Miner | Met Data Miner 6096 | -6/Data Miner | Learned location of Section 7 (-2) 6096 | -6/Data Miner | Acquired the access code to Warlord's prototype stash 6100 | -6/Data Miner | Received God Mode back door access code from Data Miner 6107 | -6/Data Miner | Entered Proximity Caves 6154 | -5/Proximity Caves | Found Prototype Device 6172 | -5/Proximity Caves | Identified Exp. Thermal Shield 6203 | -5/Proximity Caves | Heart of Steel transformed into Warbot 6307 | -5/Proximity Caves | Learned Factory terminal intel 6307 | -5/Proximity Caves | Spotted B-75 Beast 6556 | -5/Proximity Caves | Discovered exit to Factory (range 4) 6614 | -5/Proximity Caves | Entered Factory 6614 | -5/Factory | Accompanied by 1 ally 6614 | -5/Factory | Evolved 2 slots: Power x1, Propulsion x1 6615 | -5/Factory | Identified exit to Upper Caves 6617 | -5/Factory | Loaded intel: 20 terminal locations 6728 | -5/Factory | Repaired Imp. Flight Unit 6919 | -5/Factory | Identified exit to Factory 7024 | -5/Factory | Fabricated Exp. Cesium-ion Thruster? 7090 | -5/Factory | Core integrity fell below 50% 7091 | -5/Factory | Entered another Factory area 7091 | -4/Factory | Evolved 2 slots: Propulsion x1, Utility x1 7093 | -4/Factory | Loaded intel: 21 terminal locations 7120 | -4/Factory | Lost 9 parts (2p3n3u1w) 7329 | -4/Factory | Build established: Hacker-Mutant 7369 | -4/Factory | Discovered new exit (range 9) 7373 | -4/Factory | Identified exit to Extension 7374 | -4/Factory | Entered Extension 7397 | -4/Extension | Lost 10 parts (2p4n3u1w) 7459 | -4/Extension | Spotted B-86 Titan 7460 | -4/Extension | Spotted B-86 Titan 7503 | -4/Extension | Core integrity fell below 50% 7511 | -4/Extension | Discovered new exit (range 16) 7512 | -4/Extension | Discovered new exit (range 15) 7522 | -4/Extension | Identified exit to Cetus 7525 | -4/Extension | Entered Cetus 7535 | -4/Cetus | Spotted Cetus Guard 7536 | -4/Cetus | Spotted Cetus Guard 7536 | -4/Cetus | Spotted Cetus Guard 7545 | -4/Cetus | Discovered new exit (range 16) 7550 | -4/Cetus | Identified exit to Research 7554 | -4/Cetus | Lost 9 parts (1p2n6u) 7555 | -4/Cetus | Spotted Cetus Guard 7602 | -4/Cetus | Discovered new exit (range 15) 7608 | -4/Cetus | Identified exit to Archives 7608 | -4/Cetus | Entered Archives 7617 | -4/Archives | Unable to access archive contents 7623 | -4/Archives | Discovered new exit (range 16) 7625 | -4/Archives | Core integrity fell below 20% 7630 | -4/Archives | Identified exit to Hub_04(d) 7630 | -4/Archives | Entered Hub_04(d) 7653 | -4/Hub_04(d) | Lost 5 parts (1n4u) 7729 | -4/Hub_04(d) | Destroyed by S-27 Virus with Autogun Last Messages --------------- 07620_ Imp. Force Field destroyed. 07620_ Reclaimed 25 matter. 07622_ Exp. Reclamation Unit destroyed. 07623_ Archive Hub disabled. 07623_ Penetrated by Slug. 07623_ EXIT=FOUND 07624_ Penetrated by Slug. 07624_ Slug penetrates Wall. 07624_ Penetrated by Slug. 07630_ EXIT=IDENTIFIED: HUB_04(D) LOCATION=HUB_04(D) GOAL=ESCAPE 07638_ K-01 Serf collects debris. 07660_ Connecting with Terminal... 07673_ K-01 Serf collects debris. 07677_ Acquired Corruption Screen. 07687_ Acquired Imp. Core Shielding. 07691_ Acquired Adv. Cryofiber Web. 07700_ Acquired Adv. Melee Analysis Suite. 07719_ W-44 Eye sends out distress signal. Map ----- +----------------------------------------------------+ | ?????????????????????????????????????????????????? | | ?????????????????????????????????????????????????? | | ?????????????????????????????????????????????????? | | ?????????????????????????????????????????????????? | | ?????????????????????????????????????????????????? | | ?????????????????????????????????????????????????? | | ?????????????????????????????????????????????????? | | ?????????????????????????????????????????????????? | | ?????????????????????????????????????????????????? | | ???????????????????????#?????????????????????????? | | ??????????????????????? ###??????????????????????? | | ??????????????????????? #?????????????????????? | | ????????????????????/??"" #??????????? ?????????? | | ????????????????????# "G #??????????? ?????????? | | ????????????????????# """ #?????????? ?????????? | | ????????????????????# #????######/####??????? | | ????????????????????# #????# #??????? | | ????????????????????# """" #????# #??????? | | ????????????????????# """" #????# #??????? | | ????????????????????# """" #????# """" #??????? | | ????????????????????# """" #????# """" #??????? | | ????????????????????# #????# """" #??????? | | ????????????????????# #????# """" #??????? | | ????????????????????# #????# #??????? | | ########################+############+############ | | @ s | | ss | | s | | #######################################"T######### | | ??????????????????????????????????????#""#???????? | | ??????????????????????????????????????####???????? | | | | | | | | | | | | | | | | | | | | | | | | | | | | | | | | | | | | | | | +----------------------------------------------------+ Best States ------------- Heat Dissipation 43 Energy Generation 35 Energy Capacity 760 Matter Stores 300 Matter Capacity 300 Sight Range 22 Robot Scan Range 16 Terrain Scan Density 10 Additional Mass Support 27 Resistance: EX 25 Core Shielding 30 Propulsion Shielding 66 Utility Shielding 66 Point Defense Rating 160 Reclamation Efficiency 25 Evasion (%) 70 Targeting Accuracy 11 Melee Accuracy 8 Target Analysis 6 Core Analysis 6 Offensive Hacking 11 Defensive Hacking 22 Item Schematics ----------------- Hover Unit | -9/Materials | Scanalyzed Imp. Hover Unit | -9/Materials | Hacked Imp. Flight Unit | -8/Materials | Scanalyzed Combat Drone Bay | -6/Data Miner | Free Lgt. Regenerative Plating | -6/Data Miner | Free Exp. Flexi-carbon Leg | -6/Data Miner | Free Exp. Cesium-ion Thruster | -6/Data Miner | Free Exp. Sensor Array | -6/Data Miner | Free Plasma Sword | -6/Data Miner | Free Impulse Thruster | -4/Extension | Hacked Biomechanical Wings | -4/Extension | Hacked Robot Schematics ------------------ S-27 Virus | -6/Data Miner | Free G-50 Soldier | -6/Data Miner | Free X-72 Disruptor | -6/Data Miner | Free H-66 Slayer | -6/Data Miner | Free P-70 Sage | -6/Data Miner | Free I-36 Angel | -6/Data Miner | Free I-47 Archangel | -6/Data Miner | Free Fabricated ------------ Imp. Flight Unit | x1 | -7/Factory Exp. Cesium-ion Thruster | x1 | -5/Factory Alien Tech Used ----------------- None Achievements -------------- None Challenges ------------ None Game ------ Seed HellfireSlugRail Manual? 0 Play Time 03:10:27 Cumulative 34.3 hours Start 2020.04.06 @ 11:10:30 End 2020.04.07 @ 00:49:29 Sessions 5 Manual Loads 0 Difficulty Rogue Special Mode None Game No. 21 Rogue 21 Adventurer 0 Explorer 0 Win Type - Total 0 Types 0/0/0/0/0/0/0 Lore% 45 Gallery% 29 Achievement% 37 Wizard Run 0 Options --------- ASCII 0 Keyboard 0 Movement Numpad Keybinds 0 Fullscreen 1 Font 14/SmallcapsGlow Map View 84x54 Tactical HUD 1 Map Filters NONE Filters NONE Steam 1 RUN: 58b987fa-0fbb-41c9-929a-2f6499785ccf